bitfinex/quotes_BTCUSD_20250219
["timestamp","ask_amount","ask_price","bid_price","bid_amount"]
[1739987270508,0.01678143,96615.0,96608.0,0.077]
[1739987270727,0.155263,96611.0,96610.0,0.077]
[1739987271141,0.155263,96611.0,96610.0,0.07940418]
[1739987271405,0.155263,96611.0,96610.0,0.077]
[1739987272063,0.155263,96611.0,96610.0,0.079]
[1739987272534,0.305263,96611.0,96610.0,0.078]
[1739987272768,0.305263,96611.0,96610.0,0.001]
[1739987272966,2.408867,96611.0,96610.0,0.002]
[1739987273532,2.130953,96611.0,96610.0,0.002]
[1739987274016,2.15123289,96611.0,96610.0,0.001]
[1739987274519,2.15323289,96611.0,96610.0,0.001]
[1739987274747,0.305279,96600.0,96599.0,0.0816]
[1739987275204,0.305279,96600.0,96599.0,0.08401885]
[1739987276203,0.305279,96600.0,96599.0,0.0816]
[1739987276555,0.305279,96600.0,96599.0,0.12901885]
[1739987276976,0.15,96600.0,96599.0,0.12901885]
[1739987277143,0.15,96600.0,96599.0,0.1266]
[1739987277360,0.305279,96600.0,96599.0,0.1276]
[1739987277564,0.305279,96600.0,96599.0,0.12901885]
[1739987277967,0.305279,96600.0,96599.0,0.13101885]
[1739987278796,0.305279,96600.0,96599.0,0.1306]
[1739987279478,0.15,96600.0,96599.0,0.1306]
[1739987280232,0.01622406,96605.0,96599.0,0.049]
[1739987280428,0.01622406,96605.0,96600.0,0.0816]
[1739987280681,0.01622406,96605.0,96600.0,0.08401752]
[1739987280891,0.155277,96601.0,96600.0,0.08401752]
[1739987281262,0.155277,96601.0,96600.0,0.0816]
[1739987282070,0.155277,96601.0,96600.0,0.08401752]
[1739987282279,0.155277,96601.0,96600.0,0.0816]
[1739987282789,0.155277,96601.0,96600.0,0.0856]
[1739987283003,0.1557025,96601.0,96600.0,0.004]
[1739987283724,0.1557025,96601.0,96600.0,0.002]
[1739987283951,0.1557025,96601.0,96599.0,0.045]
[1739987283952,0.155279,96600.0,96599.0,0.045]
[1739987284944,0.0004255,96601.0,96600.0,0.0856]
[1739987285421,0.0004255,96601.0,96600.0,0.08401752]
[1739987285654,0.0004255,96601.0,96600.0,0.18652117]
[1739987286139,0.1557025,96601.0,96600.0,0.18652117]
[1739987286380,0.1557025,96601.0,96600.0,0.18952117]
[1739987286573,0.0004255,96601.0,96600.0,0.18952117]
[1739987287302,0.0004255,96601.0,96600.0,0.19152117]
[1739987287801,0.0004255,96601.0,96600.0,0.34680017]
[1739987287996,0.01622326,96607.0,96601.0,0.0813]
[1739987287997,0.00834876,96607.0,96601.0,0.0813]
[1739987288321,0.00834876,96607.0,96603.0,0.0813]
[1739987288551,0.3249,96647.0,96606.0,0.155269]
[1739987288783,0.00756,96644.0,96607.0,0.15070365]
[1739987289035,0.15,96616.0,96609.0,0.0813]
[1739987291925,0.155261,96611.0,96610.0,0.08450418]
[1739987292679,0.155265,96609.0,96608.0,0.0467]
[1739987293155,0.155265,96609.0,96608.0,0.04910684]
[1739987293402,0.155265,96609.0,96608.0,0.0467]
[1739987294758,0.155265,96609.0,96608.0,0.0487]
[1739987295141,0.1556905,96609.0,96608.0,0.0487]
[1739987304667,0.3056905,96609.0,96608.0,0.002]
[1739987305095,0.2913905,96609.0,96608.0,0.002]
[1739987307591,0.31222299,96609.0,96608.0,0.002]
[1739987307769,0.31222299,96609.0,96608.0,0.001]
[1739987308908,0.32844648,96609.0,96608.0,0.001]
[1739987309109,0.33044648,96609.0,96608.0,0.001]
[1739987309264,0.32844648,96609.0,96608.0,0.001]
[1739987309737,0.32844648,96609.0,96608.0,0.0774]
[1739987313829,0.31222299,96609.0,96608.0,0.0774]
[1739987315432,0.31222299,96609.0,96608.0,0.0774]
[1739987318403,0.32281661,96609.0,96608.0,0.0774]
[1739987319281,0.30198412,96609.0,96608.0,0.0774]
[1739987319509,0.16101912,96609.0,96608.0,0.1259]
[1739987319654,0.16101912,96609.0,96608.0,0.1281992]
[1739987319858,0.01101912,96609.0,96608.0,0.23070285]
[1739987325632,0.0004255,96609.0,96608.0,0.38596885]
[1739987325859,0.0004255,96609.0,96608.0,0.38681965]
[1739987325995,0.0004255,96609.0,96608.0,0.23155365]
[1739987332684,0.0004255,96609.0,96608.0,0.38681965]
[1739987333908,0.0004255,96609.0,96608.0,0.70710636]
[1739987336367,0.0004255,96609.0,96608.0,0.55184036]
[1739987336777,0.0004255,96609.0,96608.0,0.70710636]
[1739987340387,0.0004255,96609.0,96608.0,0.55184036]
[1739987340558,0.0004255,96609.0,96608.0,0.70710636]
[1739987349284,0.0004255,96609.0,96608.0,0.55184036]
[1739987350541,0.1556905,96609.0,96608.0,0.55184036]
[1739987351372,0.0004255,96609.0,96608.0,0.55184036]
[1739987351822,0.1556905,96609.0,96608.0,0.55184036]
[1739987352028,0.1556905,96609.0,96608.0,0.44933671]
[1739987356136,0.1556905,96609.0,96608.0,0.12905]
[1739987358575,0.3056905,96609.0,96608.0,0.00515]
[1739987359000,0.3056905,96609.0,96608.0,0.0028508]
[1739987359480,0.32602499,96609.0,96608.0,0.0028508]
[1739987359731,0.34224761,96609.0,96608.0,0.0028508]
[1739987359974,0.34224761,96609.0,96608.0,0.0018508]
[1739987360213,0.34224761,96609.0,96608.0,0.0028508]
[1739987361125,0.34224761,96609.0,96608.0,0.0018508]
[1739987361365,0.34224761,96609.0,96608.0,0.0028508]
[1739987364001,0.32602499,96609.0,96608.0,0.0028508]
[1739987367078,0.34224813,96609.0,96608.0,0.0028508]
[1739987371750,0.34224813,96609.0,96608.0,0.0018508]
[1739987372074,0.34324813,96609.0,96608.0,0.0008508]
[1739987373090,0.34324813,96609.0,96595.0,0.07166363]
[1739987373091,0.18798313,96609.0,96595.0,0.07166363]
[1739987373282,0.155285,96596.0,96595.0,0.06609782]
[1739987373552,0.305285,96596.0,96595.0,0.06609782]
[1739987375377,0.305285,96596.0,96595.0,0.07009782]
[1739987375892,0.305285,96596.0,96595.0,0.008]
[1739987376563,0.305285,96596.0,96595.0,0.004]
[1739987376723,0.1553,96587.0,96586.0,0.000851]
[1739987377683,0.16569246,96587.0,96586.0,0.000851]
[1739987378880,0.16569246,96587.0,96586.0,0.006851]
[1739987379284,0.16524077,96587.0,96586.0,0.003851]
[1739987379666,0.16524077,96587.0,96586.0,0.004851]
[1739987380065,0.16524077,96587.0,96586.0,0.006851]
[1739987381409,0.16524077,96587.0,96586.0,0.004851]
[1739987381737,0.16524077,96587.0,96586.0,0.007851]
[1739987391907,0.31524077,96587.0,96586.0,0.007851]
[1739987392471,0.31524077,96587.0,96586.0,0.004851]
[1739987392888,0.31524077,96587.0,96586.0,0.006851]
[1739987393824,0.31524077,96587.0,96586.0,0.002851]
[1739987394046,0.31524077,96587.0,96586.0,0.003851]
[1739987394427,0.31524077,96587.0,96586.0,0.000851]
[1739987396888,0.33146781,96587.0,96586.0,0.000851]
[1739987399133,0.33189341,96587.0,96586.0,0.000851]
[1739987403690,0.31566637,96587.0,96586.0,0.000851]
[1739987404299,0.31566637,96587.0,96586.0,0.129751]
[1739987406083,0.31566637,96587.0,96586.0,0.23225465]
[1739987406084,0.01081806,96587.0,96586.0,0.23225465]
[1739987406524,0.0004256,96587.0,96586.0,0.38988521]
[1739987406747,0.0004256,96587.0,96586.0,0.23225465]
[1739987406961,0.0004256,96587.0,96586.0,0.23458321]
[1739987407805,0.0004256,96587.0,96586.0,0.23758321]
[1739987408027,0.0004256,96587.0,96586.0,0.23458321]
[1739987408447,0.0004256,96587.0,96586.0,0.23758321]
[1739987408901,0.0004256,96587.0,96586.0,0.24058321]
[1739987409348,0.0004256,96587.0,96586.0,0.23758321]
[1739987409800,0.0004256,96587.0,96586.0,0.24058321]
[1739987418988,0.1557256,96587.0,96586.0,0.13807956]
[1739987419902,0.1557256,96587.0,96586.0,0.00917956]
[1739987420157,0.3057256,96587.0,96586.0,0.00917956]
[1739987420372,0.3057256,96587.0,96586.0,0.006851]
[1739987420600,0.32195099,96587.0,96586.0,0.006851]
[1739987422593,0.32195099,96587.0,96586.0,0.003851]
[1739987423090,0.32195099,96587.0,96586.0,0.005851]
[1739987423329,0.32195099,96587.0,96586.0,0.002851]
[1739987424090,0.32195099,96587.0,96586.0,0.000851]
[1739987424331,0.3057256,96587.0,96586.0,0.000851]
[1739987427259,0.32195218,96587.0,96586.0,0.000851]
[1739987428632,0.16665218,96587.0,96586.0,0.000851]
[1739987428864,0.16665218,96587.0,96586.0,0.083051]
[1739987429124,0.32195218,96587.0,96586.0,0.083051]
[1739987429355,0.32195218,96587.0,96586.0,0.08537956]
[1739987429599,0.17195218,96587.0,96586.0,0.083051]
[1739987429848,0.01665218,96587.0,96586.0,0.23525465]
[1739987430109,0.0004256,96587.0,96586.0,0.23358321]
[1739987430368,0.0004256,96587.0,96586.0,0.39188521]
[1739987430618,0.0004256,96587.0,96586.0,0.39488521]
[1739987430878,0.0004256,96587.0,96586.0,0.38888521]
[1739987431142,0.0004256,96587.0,96586.0,0.39488521]
[1739987431875,0.0004256,96587.0,96586.0,0.39188521]
[1739987433026,0.0004256,96587.0,96586.0,0.3944014]
[1739987433449,0.0014256,96587.0,96586.0,0.72168811]
[1739987433886,0.0014256,96587.0,96586.0,0.72468811]
[1739987434278,0.0014256,96587.0,96586.0,0.72168811]
[1739987434751,0.0014256,96587.0,96586.0,0.72868811]
[1739987435921,0.0014256,96587.0,96586.0,0.57338611]
[1739987436106,0.0014256,96587.0,96586.0,0.72868811]
[1739987438392,0.0014256,96587.0,96586.0,0.72317192]
[1739987439221,0.0014256,96587.0,96586.0,0.56786992]
[1739987439391,0.0014256,96587.0,96586.0,0.72317192]
[1739987439983,0.0014256,96587.0,96586.0,0.71272392]
[1739987440179,0.0014256,96587.0,96586.0,0.55742192]
[1739987440441,0.0014256,96587.0,96586.0,0.71272392]
[1739987440888,0.0014256,96587.0,96586.0,0.55742192]
[1739987441068,0.0014256,96587.0,96586.0,0.71272392]
[1739987448844,0.0014256,96587.0,96586.0,0.7182361]
[1739987449049,0.0014256,96587.0,96586.0,0.7190873]
[1739987452831,0.0014256,96587.0,96586.0,0.73362815]
[1739987453805,0.0014256,96587.0,96586.0,0.72662815]
[1739987454023,0.0014256,96587.0,96586.0,0.73362815]
[1739987455031,0.0004256,96587.0,96586.0,0.72662815]
[1739987455511,0.0004256,96587.0,96586.0,0.73362815]
[1739987457274,0.0004256,96587.0,96586.0,1.27702815]
[1739987458632,0.0004256,96587.0,96586.0,1.28585199]
[1739987460508,0.0004256,96587.0,96586.0,1.30585199]
[1739987461278,0.0004256,96587.0,96586.0,1.29885199]
[1739987461499,0.0004256,96587.0,96586.0,1.30585199]
[1739987461697,0.0004256,96587.0,96586.0,1.29885199]
[1739987461898,0.0004256,96587.0,96586.0,1.29002815]
[1739987462098,0.0004256,96587.0,96586.0,1.29702815]
[1739987462596,0.0004256,96587.0,96586.0,1.32935344]
[1739987466149,0.0004256,96587.0,96586.0,1.30935344]
[1739987466940,0.0004256,96587.0,96586.0,1.32935344]
[1739987468297,0.0004256,96587.0,96586.0,1.29702815]
[1739987469869,0.0005564,96615.0,96612.0,0.02]
[1739987469870,9e-07,96615.0,96612.0,0.02]
[1739987470104,0.0004255,96635.0,96629.0,0.281532]
[1739987470355,0.0004255,96635.0,96629.0,0.38403565]
[1739987470599,0.00049318,96630.0,96629.0,0.23061166]
[1739987470837,0.00049318,96630.0,96629.0,0.30884366]
[1739987471744,0.00049318,96630.0,96629.0,0.31584366]
[1739987472026,0.00049318,96630.0,96629.0,0.39094366]
[1739987473284,0.00049318,96630.0,96629.0,0.39794366]
[1739987475126,0.00049318,96630.0,96629.0,0.71823037]
[1739987481055,0.01330428,96636.0,96635.0,0.155223]
[1739987481255,0.01330428,96636.0,96635.0,0.57801336]
[1739987481415,0.01330428,96636.0,96635.0,0.5798147]
[1739987482445,0.01330428,96636.0,96635.0,0.5868147]
[1739987482673,0.01330428,96636.0,96635.0,0.5938147]
[1739987483612,0.01330428,96636.0,96635.0,0.27352799]
[1739987485709,0.01372978,96636.0,96635.0,0.27352799]
[1739987489602,0.01372978,96636.0,96635.0,0.11830499]
[1739987490710,0.01372978,96636.0,96635.0,0.26652799]
[1739987490847,0.01372978,96636.0,96635.0,0.25952799]
[1739987491073,0.01372978,96636.0,96635.0,0.27352799]
[1739987491279,0.01372978,96636.0,96635.0,0.11130499]
[1739987491477,0.01372978,96636.0,96635.0,0.11830499]
[1739987491768,0.01372978,96636.0,96635.0,0.11130499]
[1739987491943,0.01372978,96636.0,96635.0,0.11830499]
[1739987492561,0.01372978,96636.0,96635.0,0.27352799]
[1739987492760,0.01372978,96636.0,96635.0,0.11830499]
[1739987497431,0.01372978,96636.0,96635.0,0.11915579]
[1739987500568,0.01372978,96636.0,96635.0,0.27437879]
[1739987500782,0.01372978,96636.0,96635.0,0.11915579]
[1739987504608,0.01372978,96636.0,96635.0,0.27437879]
[1739987504840,0.01372978,96636.0,96635.0,0.11915579]
[1739987505981,0.16895078,96636.0,96635.0,0.11915579]
[1739987506473,0.01372978,96636.0,96635.0,0.11915579]
[1739987506952,0.16895078,96636.0,96635.0,0.11915579]
[1739987507181,0.01372978,96636.0,96635.0,0.11915579]
[1739987507411,0.16895078,96636.0,96635.0,0.11915579]
[1739987507638,0.01372978,96636.0,96635.0,0.11915579]
[1739987507866,0.01372978,96636.0,96635.0,0.11735445]
[1739987508096,0.16895078,96636.0,96635.0,0.11915579]
[1739987509030,0.16895078,96636.0,96635.0,0.11735445]
[1739987509257,0.16895078,96636.0,96635.0,0.11915579]
[1739987512790,0.37685078,96636.0,96635.0,0.01665214]
[1739987513030,1.08277281,96636.0,96635.0,0.01665214]
[1739987513258,0.99917731,96636.0,96635.0,0.0148508]
[1739987513483,0.94403631,96636.0,96635.0,0.0148508]
[1739987513706,0.85235578,96636.0,96635.0,0.0008508]
[1739987514855,0.85335578,96636.0,96635.0,0.0008508]
[1739987515069,0.85235578,96636.0,96635.0,0.0008508]
[1739987515290,0.85335578,96636.0,96635.0,0.0008508]
[1739987516441,0.85435578,96636.0,96635.0,0.0008508]
[1739987516723,0.87057574,96636.0,96635.0,0.0008508]
[1739987521384,0.81267574,96636.0,96635.0,0.0008508]
[1739987521542,0.55585874,96636.0,96635.0,0.0008508]
[1739987521751,0.33717074,96636.0,96635.0,0.0008508]
[1739987522132,0.54108174,96636.0,96635.0,0.0008508]
[1739987522565,0.33717074,96636.0,96635.0,0.0008508]
[1739987523162,0.49921374,96636.0,96635.0,0.0008508]
[1739987523369,0.50021374,96636.0,96635.0,0.0008508]
[1739987523768,0.31895078,96636.0,96635.0,0.0008508]
[1739987523974,0.32095078,96636.0,96635.0,0.0008508]
[1739987524174,0.50105278,96636.0,96635.0,0.0008508]
[1739987524744,0.43173678,96636.0,96635.0,0.0008508]
[1739987528676,0.44795651,96636.0,96635.0,0.0008508]
[1739987530384,0.91552651,96636.0,96635.0,0.0008508]
[1739987531380,0.66651251,96636.0,96635.0,0.0008508]
[1739987531588,0.33717051,96636.0,96635.0,0.0008508]
[1739987531806,0.18717051,96636.0,96635.0,0.0491508]
[1739987532019,0.18717051,96636.0,96635.0,0.15145445]
[1739987532222,0.03194951,96636.0,96635.0,0.23076814]
[1739987532849,0.01372978,96636.0,96635.0,0.23076814]
[1739987533081,0.01372978,96636.0,96635.0,0.23176814]
[1739987534355,0.01372978,96636.0,96635.0,0.23076814]
[1739987534766,0.01372978,96636.0,96635.0,0.23576814]
[1739987535997,0.01372978,96636.0,96635.0,0.23676814]
[1739987536627,0.01372978,96636.0,96635.0,0.23576814]
[1739987536797,0.01372978,96636.0,96635.0,0.24076814]
[1739987537814,0.01372978,96636.0,96635.0,0.39599114]
[1739987539530,0.01372978,96636.0,96635.0,0.40553199]
[1739987539658,0.01372978,96636.0,96635.0,0.40053199]
[1739987539863,0.01372978,96636.0,96635.0,0.41353199]
[1739987540311,0.01372978,96636.0,96635.0,0.40053199]
[1739987540530,0.01372978,96636.0,96635.0,0.40753199]
[1739987541527,0.01372978,96636.0,96635.0,0.41453199]
[1739987544388,0.01372978,96636.0,96635.0,0.39999114]
[1739987547273,0.01372978,96636.0,96635.0,0.41453199]
[1739987548215,0.01372978,96636.0,96635.0,0.40753199]
[1739987548395,0.01372978,96636.0,96635.0,0.41453199]
[1739987548563,0.01372978,96636.0,96635.0,0.40753199]
[1739987548950,0.01372978,96636.0,96635.0,0.41453199]
[1739987549351,0.01372978,96636.0,96635.0,0.73493199]
[1739987553247,0.01372978,96636.0,96635.0,0.72793199]
[1739987553366,0.01372978,96636.0,96635.0,0.73493199]
[1739987553566,0.01372978,96636.0,96635.0,0.73341494]
[1739987554008,0.01372978,96636.0,96635.0,0.74041494]
[1739987554494,0.01372978,96636.0,96635.0,0.73341494]
[1739987554878,0.01372978,96636.0,96635.0,0.72793199]
[1739987555216,0.01372978,96636.0,96635.0,0.73493199]
[1739987555418,0.01372978,96636.0,96635.0,1.27833199]
[1739987556067,0.01372978,96636.0,96635.0,1.28585199]
[1739987572667,0.01372978,96636.0,96635.0,1.31812945]
[1739987573497,0.01372978,96636.0,96635.0,1.31112945]
[1739987574407,0.01372978,96636.0,96635.0,1.31812945]
[1739987574618,0.01372978,96636.0,96635.0,1.31112945]
[1739987574833,0.01372978,96636.0,96635.0,1.30412945]
[1739987575031,0.01372978,96636.0,96635.0,1.31812945]
[1739987576564,0.01372978,96636.0,96635.0,1.33812945]
[1739987577473,0.01372978,96636.0,96635.0,1.33112945]
[1739987577671,0.01372978,96636.0,96635.0,1.32412945]
[1739987577871,0.01372978,96636.0,96635.0,1.33112945]
[1739987578086,0.01372978,96636.0,96635.0,1.33812945]
[1739987583098,0.01372978,96636.0,96635.0,1.34579341]
[1739987589663,0.01372978,96636.0,96635.0,1.33827341]
[1739987589887,0.01372978,96636.0,96635.0,1.2960686]
[1739987590063,0.01372978,96636.0,96635.0,1.26379114]
[1739987590233,0.01372978,96636.0,96635.0,1.27833199]
[1739987590697,0.01372978,96636.0,96635.0,1.27133199]
[1739987591305,0.01372978,96636.0,96635.0,1.26433199]
[1739987591538,0.01372978,96636.0,96635.0,1.27133199]
[1739987592018,0.01372978,96636.0,96635.0,1.26433199]
[1739987592266,0.01372978,96636.0,96635.0,1.27133199]
[1739987592499,0.01372978,96636.0,96635.0,1.27833199]
[1739987592956,0.01372978,96636.0,96635.0,1.27133199]
[1739987593454,0.01372978,96636.0,96635.0,1.27833199]
[1739987593960,0.01372978,96636.0,96635.0,1.33062106]
[1739987594190,0.01372978,96636.0,96635.0,1.31062106]
[1739987594469,0.01372978,96636.0,96635.0,1.23312106]
[1739987594693,0.01372978,96636.0,96635.0,1.20083199]
[1739987594922,0.01372978,96636.0,96635.0,1.19383199]
[1739987595161,0.01372978,96636.0,96635.0,1.20083199]
[1739987595619,0.01372978,96636.0,96635.0,1.19383199]
[1739987595862,0.01372978,96636.0,96635.0,1.20083199]
[1739987596342,0.01372978,96636.0,96635.0,0.43936814]
[1739987596588,0.01372978,96636.0,96635.0,0.43236814]
[1739987597947,0.01372978,96636.0,96635.0,0.43936814]
[1739987601054,0.01372978,96636.0,96635.0,0.59459114]
[1739987601263,0.01372978,96636.0,96635.0,0.43936814]
[1739987606833,0.01372978,96636.0,96635.0,0.51476814]
[1739987607257,0.01372978,96636.0,96635.0,0.66999114]
[1739987607467,0.01372978,96636.0,96635.0,0.51476814]
[1739987607685,0.01372978,96636.0,96635.0,0.66999114]
[1739987609486,0.01372978,96636.0,96635.0,0.71659114]
[1739987611079,0.01372978,96636.0,96635.0,0.71646313]
[1739987620306,0.01372978,96636.0,96635.0,0.73100398]
[1739987621291,0.01372978,96636.0,96635.0,1.3266242]
[1739987621729,0.01372978,96636.0,96635.0,1.3066242]
[1739987621935,0.01372978,96636.0,96635.0,1.27440398]
[1739987622154,0.01372978,96636.0,96635.0,1.26740398]
[1739987622588,0.01372978,96636.0,96635.0,1.27440398]
[1739987622823,0.01372978,96636.0,96635.0,1.26740398]
[1739987623284,0.01372978,96636.0,96635.0,1.27440398]
[1739987624371,0.01372978,96636.0,96635.0,1.26040398]
[1739987624693,0.01372978,96636.0,96635.0,1.26740398]
[1739987625062,0.01372978,96636.0,96635.0,1.26040398]
[1739987625421,0.01372978,96636.0,96635.0,1.26740398]
[1739987626233,0.01372978,96636.0,96635.0,1.27440398]
[1739987633716,0.01372978,96636.0,96635.0,1.27990242]
[1739987637758,0.01372978,96636.0,96635.0,1.27440398]
[1739987638118,0.01372978,96636.0,96635.0,1.14974998]
[1739987638351,0.01372978,96636.0,96635.0,1.25379475]
[1739987638752,0.01372978,96636.0,96635.0,1.25464575]
[1739987648175,0.01372978,96636.0,96635.0,1.26229727]
[1739987649571,0.01372978,96636.0,96635.0,1.37149727]
[1739987649824,0.01372978,96636.0,96635.0,1.26229727]
[1739987653641,0.01372978,96636.0,96635.0,1.29458965]
[1739987658349,0.01372978,96636.0,96635.0,1.38737304]
[1739987660490,0.01372978,96636.0,96635.0,1.29458965]
[1739987682167,0.01372978,96636.0,96635.0,1.30202965]
[1739987682386,0.01372978,96636.0,96635.0,1.21897813]
[1739987682600,0.01372978,96636.0,96635.0,1.18668575]
[1739987684318,0.01372978,96636.0,96635.0,1.13264575]
[1739987686159,0.01372978,96636.0,96635.0,0.58924575]
[1739987686377,0.01372978,96636.0,96635.0,0.4194819]
[1739987686825,0.01372978,96636.0,96635.0,0.5747049]
[1739987687046,0.01372978,96636.0,96635.0,0.4194819]
[1739987687254,0.01372978,96636.0,96635.0,0.4054819]
[1739987687467,0.01372978,96636.0,96635.0,0.4124819]
[1739987688355,0.02420163,96636.0,96635.0,0.4124819]
[1739987688616,0.22062263,96636.0,96635.0,0.01639212]
[1739987689408,0.22062263,96636.0,96635.0,0.007851]
[1739987689609,0.23732263,96636.0,96635.0,0.012851]
[1739987690027,0.23732263,96636.0,96635.0,0.007851]
[1739987690995,0.23732263,96636.0,96635.0,0.010851]
[1739987691126,0.23732263,96636.0,96635.0,0.003851]
[1739987691326,0.23732263,96636.0,96635.0,0.009851]
[1739987692393,0.23732263,96636.0,96635.0,0.003851]
[1739987692593,0.23732263,96636.0,96635.0,0.000851]
[1739987692791,0.23732263,96636.0,96635.0,0.004851]
[1739987693226,0.23732263,96636.0,96635.0,0.007851]
[1739987693657,0.23732263,96636.0,96635.0,0.004851]
[1739987693866,0.23732263,96636.0,96635.0,0.006851]
[1739987694193,0.23732263,96636.0,96635.0,0.000851]
[1739987694395,0.23732263,96636.0,96635.0,0.004851]
[1739987694601,0.02420163,96636.0,96635.0,0.004851]
[1739987694818,0.17942263,96636.0,96635.0,0.002851]
[1739987695677,0.17942263,96636.0,96635.0,0.006851]
[1739987696508,0.17942263,96636.0,96635.0,0.004851]
[1739987696712,0.17942263,96636.0,96635.0,0.007851]
[1739987697350,0.17942263,96636.0,96635.0,0.003851]
[1739987697764,0.01372978,96636.0,96635.0,0.11035465]
[1739987697968,0.01372978,96636.0,96635.0,0.11182019]
[1739987698141,0.01372978,96636.0,96635.0,0.26304319]
[1739987698342,0.01372978,96636.0,96635.0,0.26704319]
[1739987698761,0.01372978,96636.0,96635.0,0.34314319]
[1739987698976,0.01372978,96636.0,96635.0,0.64372932]
[1739987699519,0.01372978,96636.0,96635.0,0.64072932]
[1739987699739,0.01372978,96636.0,96635.0,0.64772932]
[1739987700404,0.01372978,96636.0,96635.0,0.64372932]
[1739987700641,0.01372978,96636.0,96635.0,0.65072932]
[1739987701379,0.01372978,96636.0,96635.0,0.49550632]
[1739987701832,0.01372978,96636.0,96635.0,0.65072932]
[1739987711371,0.01372978,96636.0,96635.0,0.41940632]
[1739987711596,0.16895078,96636.0,96635.0,0.31690267]
[1739987711817,0.37036751,96636.0,96635.0,0.01631654]
[1739987712243,0.37036751,96636.0,96635.0,0.014851]
[1739987712660,0.37036751,96636.0,96635.0,0.007851]
[1739987712885,0.39060261,96636.0,96635.0,0.008851]
[1739987713323,0.39060261,96636.0,96635.0,0.000851]
[1739987713560,0.39060261,96636.0,96635.0,0.001851]
[1739987713756,0.39060261,96636.0,96635.0,0.002851]
[1739987713924,0.39060261,96636.0,96635.0,0.001851]
[1739987714224,0.39060261,96636.0,96635.0,0.002851]
[1739987714421,0.39060261,96636.0,96635.0,0.001851]
[1739987714619,0.39060261,96636.0,96635.0,0.002851]
[1739987715373,0.37036751,96636.0,96635.0,0.001851]
[1739987715811,0.37036751,96636.0,96635.0,0.002851]
[1739987716053,0.37036751,96636.0,96635.0,0.000851]
[1739987716296,0.37036751,96636.0,96635.0,0.001851]
[1739987716790,0.37036751,96636.0,96635.0,0.002851]
[1739987717227,0.37036751,96636.0,96635.0,0.001851]
[1739987717618,0.37036751,96636.0,96635.0,0.002851]
[1739987717829,0.38658593,96636.0,96635.0,0.002851]
[1739987718032,0.38658593,96636.0,96635.0,0.001851]
[1739987718453,0.38658593,96636.0,96635.0,0.000851]
[1739987718667,0.38658593,96636.0,96635.0,0.001851]
[1739987720068,0.38658593,96636.0,96635.0,0.002851]
[1739987722846,0.38150248,96636.0,96635.0,0.002851]
[1739987723259,0.37639623,96636.0,96635.0,0.002851]
[1739987723677,0.36017781,96636.0,96635.0,0.002851]
[1739987724087,0.35664016,96636.0,96635.0,0.002851]
[1739987724445,0.35516513,96636.0,96635.0,0.002851]
[1739987726404,0.31396513,96636.0,96635.0,0.002851]
[1739987726839,0.33018402,96636.0,96635.0,0.002851]
[1739987730726,0.33018402,96636.0,96635.0,0.001851]
[1739987730868,0.33160952,96636.0,96635.0,0.001851]
[1739987731489,0.33160952,96636.0,96635.0,0.000851]
[1739987732503,0.33260952,96636.0,96635.0,0.000851]
[1739987733225,0.33160952,96636.0,96635.0,0.000851]
[1739987733454,0.33260952,96636.0,96635.0,0.000851]
[1739987733680,0.33160952,96636.0,96635.0,0.000851]
[1739987733888,0.31539063,96636.0,96635.0,0.000851]
[1739987735067,0.31639063,96636.0,96635.0,0.000851]
[1739987735734,0.35759063,96636.0,96635.0,0.000851]
[1739987735990,0.35759063,96636.0,96615.0,0.000851]
[1739987735991,0.305253,96616.0,96615.0,0.000851]
[1739987736218,0.305253,96616.0,96615.0,0.00091868]
[1739987736428,1.284177,96616.0,96615.0,0.00091868]
[1739987736892,0.84209021,96616.0,96615.0,0.00091868]
[1739987737141,0.54238321,96616.0,96615.0,0.00091868]
[1739987737366,0.32147621,96616.0,96615.0,0.00091868]
[1739987739247,0.32447621,96616.0,96615.0,0.00091868]
[1739987739697,0.32147621,96616.0,96615.0,0.00091868]
[1739987740148,0.32147621,96616.0,96615.0,0.00184648]
[1739987740577,0.32147621,96616.0,96615.0,0.10435013]
[1739987740578,0.01622321,96616.0,96615.0,0.10435013]
[1739987740788,0.01622321,96616.0,96615.0,0.10586094]
[1739987741027,0.01064223,96636.0,96615.0,0.40644707]
[1739987741255,0.01064223,96636.0,96616.0,0.17780365]
[1739987741256,0.01621871,96634.0,96616.0,0.17780365]
[1739987741687,0.01621871,96634.0,96617.0,0.00150839]
[1739987741931,0.01621871,96634.0,96618.0,0.10250365]
[1739987742167,0.01621871,96634.0,96618.0,0.10401082]
[1739987742388,0.155231,96630.0,96618.0,0.10401082]
[1739987742600,0.155229,96631.0,96618.0,0.10382679]
[1739987742805,0.155231,96630.0,96618.0,0.10382679]
[1739987743012,0.155236,96627.0,96618.0,0.10382679]
[1739987743234,0.206977,96630.0,96618.0,0.10382679]
[1739987743448,0.155232,96629.0,96618.0,0.10382679]
[1739987743688,0.15,96632.0,96618.0,0.10382679]
[1739987743909,0.155229,96631.0,96618.0,0.10382679]
[1739987744126,0.155233,96629.0,96618.0,0.10382679]
[1739987744331,0.155232,96629.0,96618.0,0.10382679]
[1739987744990,0.001,96630.0,96618.0,0.10382679]
[1739987745408,0.002,96630.0,96618.0,0.10382679]
[1739987745603,0.001,96629.0,96618.0,0.10382679]
[1739987746048,0.157232,96630.0,96618.0,0.10382679]
[1739987746253,0.158232,96630.0,96618.0,0.10382679]
[1739987746462,0.156232,96630.0,96618.0,0.10382679]
[1739987746863,0.001,96629.0,96618.0,0.10382679]
[1739987747528,0.156233,96629.0,96618.0,0.10382679]
[1739987747855,0.157233,96629.0,96618.0,0.10382679]
[1739987748035,0.002,96629.0,96618.0,0.10382679]
[1739987748335,0.001,96629.0,96618.0,0.10382679]
[1739987749301,0.002,96629.0,96618.0,0.10382679]
[1739987751961,0.002,96629.0,96618.0,0.10382679]
[1739987752423,0.155243,96623.0,96618.0,0.10382679]
[1739987752939,0.15524,96625.0,96618.0,0.10382679]
[1739987753163,0.155242,96624.0,96618.0,0.10382679]
[1739987753336,0.155242,96623.0,96618.0,0.10382679]
[1739987753837,0.155246,96621.0,96618.0,0.10382679]
[1739987754044,0.155242,96623.0,96618.0,0.10382679]
[1739987754450,0.155242,96623.0,96618.0,0.10482679]
[1739987754869,0.15,96633.0,96618.0,0.10482679]
[1739987755080,0.206981,96628.0,96618.0,0.10667799]
[1739987755500,0.155243,96623.0,96618.0,0.10667799]
[1739987755720,0.155243,96623.0,96618.0,0.10567799]
[1739987756079,0.155248,96619.0,96618.0,0.00335837]
[1739987756290,0.155247,96620.0,96618.0,0.00335837]
[1739987756493,0.155248,96619.0,96618.0,0.00335837]
[1739987756850,0.155248,96619.0,96618.0,0.0018512]
[1739987757067,0.155248,96619.0,96618.0,0.0028512]